bitfinex-derivatives/quotes_BTCF0:USTF0_20240929
["timestamp","ask_amount","ask_price","bid_price","bid_amount"]
[1727618692199,0.12,65764.0,65763.0,0.107011]
[1727618692409,0.17,65764.0,65763.0,0.107011]
[1727618693208,0.05,65764.0,65763.0,0.577811]
[1727618693410,0.11,65771.0,65770.0,0.076002]
[1727618693706,0.15,65771.0,65770.0,0.076402]
[1727618695102,0.151,65771.0,65770.0,0.076402]
[1727618695500,0.152,65771.0,65770.0,0.076402]
[1727618696607,0.5128,65771.0,65770.0,0.1370762]
[1727618696810,0.588802,65771.0,65770.0,0.1370762]
[1727618697203,0.588802,65771.0,65770.0,0.076402]
[1727618698600,0.5128,65771.0,65770.0,0.076402]
[1727618701315,0.5128,65771.0,65770.0,0.076002]
[1727618701517,0.5172,65771.0,65770.0,0.138002]
[1727618703425,0.1564,65771.0,65770.0,0.138002]
[1727618704626,0.0464,65771.0,65770.0,0.170702]
[1727618704827,0.0464,65771.0,65770.0,0.202102]
[1727618705921,0.0464,65771.0,65770.0,0.562902]
[1727618706128,0.0464,65771.0,65770.0,0.202102]
[1727618706718,0.0464,65771.0,65770.0,0.29332032]
[1727618707421,0.1564,65771.0,65770.0,0.29332032]
[1727618708424,0.0464,65771.0,65770.0,0.29332032]
[1727618708636,0.1564,65771.0,65770.0,0.29332032]
[1727618709025,0.152,65771.0,65770.0,0.29332032]
[1727618709233,0.1564,65771.0,65770.0,0.29332032]
[1727618709728,0.0464,65771.0,65770.0,0.29332032]
[1727618710320,0.00077,65771.0,65770.0,0.33981918]
[1727618710522,0.079495,65777.0,65776.0,0.075996]
[1727618710726,0.079495,65777.0,65770.0,0.24108395]
[1727618710727,0.076001,65773.0,65772.0,0.076]
[1727618710926,0.296001,65773.0,65772.0,0.1670799]
[1727618712923,0.297001,65773.0,65772.0,0.1670799]
[1727618713228,0.298001,65773.0,65772.0,0.1670799]
[1727618714231,0.298001,65773.0,65772.0,0.076]
[1727618716837,0.298771,65773.0,65772.0,0.138]
[1727618722239,0.298771,65773.0,65772.0,0.33769782]
[1727618727240,0.298771,65773.0,65772.0,0.33778867]
[1727618729238,0.298771,65773.0,65772.0,0.3203724]
[1727618729628,0.11277,65773.0,65772.0,0.33914606]
[1727618729834,0.11277,65773.0,65772.0,0.43914606]
[1727618730135,0.11277,65773.0,65772.0,0.54772464]
[1727618730335,0.0022811,65778.0,65772.0,1.6950834]
[1727618730538,0.0022811,65778.0,65777.0,0.076395]
[1727618730737,0.0022811,65778.0,65777.0,0.27614012]
[1727618731134,0.0122811,65778.0,65777.0,0.37614012]
[1727618731530,0.0132811,65778.0,65777.0,0.26754106]
[1727618731830,0.0142811,65778.0,65777.0,0.26719645]
[1727618732140,0.0142811,65778.0,65777.0,0.32919645]
[1727618733129,0.0132811,65778.0,65777.0,0.32919645]
[1727618733335,0.0142811,65778.0,65777.0,0.32919645]
[1727618734136,0.0142811,65778.0,65777.0,0.35295901]
[1727618734439,0.0142811,65778.0,65777.0,0.3909792]
[1727618734943,0.0142811,65778.0,65777.0,0.41818085]
[1727618735647,0.0142811,65778.0,65777.0,0.31818085]
[1727618736347,0.0042811,65778.0,65777.0,0.31818085]
[1727618736541,0.0042811,65778.0,65777.0,0.40818085]
[1727618736939,0.0042811,65778.0,65777.0,0.3463981]
[1727618737240,0.0142811,65778.0,65777.0,0.25559665]
[1727618737442,0.0042811,65778.0,65777.0,0.16559665]
[1727618737639,0.002,65778.0,65777.0,0.62167665]
[1727618737841,0.0035,65784.0,65783.0,0.075988]
[1727618738040,0.77818489,65797.0,65787.0,0.075983]
[1727618738041,0.0035,65790.0,65787.0,0.075983]
[1727618738237,0.0035,65794.0,65787.0,0.186383]
[1727618738436,0.0035,65794.0,65787.0,0.2204]
[1727618738745,0.0035,65794.0,65793.0,0.186376]
[1727618738746,0.0235,65794.0,65793.0,0.186376]
[1727618738945,0.0035,65800.0,65793.0,0.186376]
[1727618739145,0.0535,65800.0,65799.0,0.186369]
[1727618739348,0.05,65800.0,65799.0,0.186369]
[1727618739539,0.3608,65802.0,65799.0,0.2204]
[1727618739739,0.3608,65802.0,65801.0,0.076367]
[1727618740242,0.0035,65806.0,65805.0,0.075963]
[1727618740445,0.3643,65810.0,65808.0,0.075958]
[1727618740747,0.4108,65810.0,65809.0,0.076358]
[1727618740952,0.0035,65814.0,65813.0,0.075953]
[1727618741253,0.12,65814.0,65813.0,0.075953]
[1727618741445,0.12,65814.0,65813.0,0.0004]
[1727618741835,0.195952,65814.0,65813.0,0.0004]
[1727618742237,0.205952,65814.0,65813.0,0.0004]
[1727618742449,0.216952,65814.0,65813.0,0.0004]
[1727618743551,0.286952,65814.0,65813.0,0.0004]
[1727618743843,0.647752,65814.0,65813.0,0.0004]
[1727618745249,1.008552,65814.0,65813.0,0.0004]
[1727618745748,0.075953,65813.0,65799.0,0.00227959]
[1727618745943,0.5408,65804.0,65803.0,0.0655]
[1727618746144,0.5408,65804.0,65803.0,0.062]
[1727618746145,0.6408,65804.0,65803.0,0.062]
[1727618746745,0.716764,65804.0,65803.0,0.062]
[1727618747646,0.724764,65804.0,65803.0,0.062]
[1727618747947,0.731764,65804.0,65803.0,0.062]
[1727618749248,0.075966,65803.0,65799.0,0.00227959]
[1727618749452,0.175966,65803.0,65799.0,0.00227959]
[1727618749646,0.536766,65803.0,65799.0,0.00227959]
[1727618749848,0.175966,65803.0,65799.0,0.00227959]
[1727618750044,0.536766,65803.0,65799.0,0.00227959]
[1727618750447,0.539766,65803.0,65799.0,0.00227959]
[1727618750648,0.182966,65803.0,65799.0,0.00227959]
[1727618750853,0.543766,65803.0,65799.0,0.00227959]
[1727618751041,0.18,65800.0,65799.0,0.00227959]
[1727618751249,0.28,65800.0,65799.0,0.00227959]
[1727618751954,0.443766,65803.0,65801.0,0.0334]
[1727618752157,0.18,65802.0,65801.0,0.0334]
[1727618752454,0.27,65802.0,65801.0,0.0334]
[1727618753555,0.275,65802.0,65801.0,0.0334]
[1727618753953,0.281,65802.0,65801.0,0.0334]
[1727618756167,0.356966,65802.0,65801.0,0.0334]
[1727618764359,0.356966,65802.0,65801.0,0.03183]
[1727618764660,1.412886,65802.0,65801.0,0.03183]
[1727618765551,1.412886,65802.0,65791.0,0.0035]
[1727618765552,0.075978,65792.0,65791.0,0.0035]
[1727618765763,0.075987,65784.0,65783.0,0.075988]
[1727618765964,0.16,65784.0,65783.0,0.075988]
[1727618768454,0.161,65784.0,65783.0,0.105988]
[1727618768654,0.162,65784.0,65783.0,0.105988]
[1727618768862,0.237987,65784.0,65783.0,0.105988]
[1727618772368,0.161,65784.0,65783.0,0.105988]
[1727618772571,0.237987,65784.0,65783.0,0.105988]
[1727618773362,0.237987,65784.0,65783.0,0.03]
[1727618774362,0.238987,65784.0,65783.0,0.03]
[1727618775773,0.599787,65784.0,65783.0,0.03]
[1727618776467,0.599787,65784.0,65783.0,0.105988]
[1727618778072,0.599787,65784.0,65783.0,0.03]
[1727618778673,0.599787,65784.0,65783.0,0.105988]
[1727618780370,0.599787,65784.0,65783.0,0.15142037]
[1727618780767,0.599787,65784.0,65783.0,0.105988]
[1727618781478,0.599787,65784.0,65783.0,0.15142037]
[1727618781872,0.5238,65784.0,65783.0,0.15142037]
[1727618782063,0.4138,65784.0,65783.0,0.105988]
[1727618782375,0.3639,65784.0,65783.0,0.105988]
[1727618782675,0.3638,65784.0,65783.0,0.562028]
[1727618783379,0.3638,65784.0,65783.0,1.162028]
[1727618783778,0.3738,65784.0,65783.0,0.562028]
[1727618786877,0.013,65784.0,65783.0,0.562028]
[1727618788885,0.013,65784.0,65783.0,0.105988]
[1727618789477,0.013,65784.0,65783.0,0.19741714]
[1727618790083,0.013,65784.0,65783.0,0.2211779]
[1727618794081,0.013,65784.0,65783.0,0.19741714]
[1727618794282,0.013,65784.0,65783.0,0.22117836]
[1727618795681,0.013,65784.0,65783.0,0.22129103]
[1727618797479,0.013,65784.0,65783.0,0.31236641]
[1727618798491,0.013,65784.0,65783.0,0.22129103]
[1727618803197,0.003,65784.0,65783.0,0.22129103]
[1727618803396,0.043,65784.0,65783.0,0.22129103]
[1727618804598,0.043,65784.0,65783.0,0.12974922]
[1727618805300,0.043,65784.0,65783.0,0.16776655]
[1727618805495,0.043,65784.0,65783.0,0.12974922]
[1727618807989,0.043,65784.0,65783.0,0.105988]
[1727618809392,0.043,65784.0,65783.0,0.12974947]
[1727618810396,0.118987,65784.0,65783.0,0.12974947]
[1727618812503,0.118987,65784.0,65783.0,0.221408]
[1727618813399,0.098987,65784.0,65783.0,0.221408]
[1727618815603,0.129187,65784.0,65783.0,0.221408]
[1727618816099,0.129187,65784.0,65783.0,0.25942695]
[1727618816401,0.129187,65784.0,65783.0,0.19764611]
[1727618817897,0.129187,65784.0,65783.0,0.19761617]
[1727618819810,0.129187,65784.0,65783.0,0.25939742]
[1727618820004,0.129187,65784.0,65783.0,0.19761617]
[1727618820301,0.0532,65784.0,65783.0,0.19761617]
[1727618820610,0.129187,65784.0,65783.0,0.19761617]
[1727618821800,0.129187,65784.0,65783.0,0.2593973]
[1727618822996,0.129187,65784.0,65783.0,0.16776913]
[1727618823210,0.129187,65784.0,65783.0,0.25943734]
[1727618823409,0.129187,65784.0,65783.0,0.23567537]
[1727618823610,0.129187,65784.0,65783.0,0.2594374]
[1727618823799,0.129187,65784.0,65783.0,0.25943749]
[1727618824898,0.129187,65784.0,65783.0,0.3354182]
[1727618825100,0.129187,65784.0,65783.0,0.25943749]
[1727618825398,0.129187,65784.0,65783.0,0.3354172]
[1727618825599,0.129187,65784.0,65783.0,0.27363592]
[1727618825900,0.129187,65784.0,65783.0,0.19765621]
[1727618826297,0.129187,65784.0,65783.0,0.27363462]
[1727618826502,0.129187,65784.0,65783.0,0.15157536]
[1727618826909,0.129187,65784.0,65783.0,0.17533727]
[1727618827302,0.129187,65784.0,65783.0,0.21335633]
[1727618827703,0.129187,65784.0,65783.0,0.16776897]
[1727618829004,0.129187,65784.0,65783.0,0.105988]
[1727618830413,0.129187,65784.0,65783.0,0.16776939]
[1727618831508,0.129187,65784.0,65783.0,0.105988]
[1727618832111,0.489987,65784.0,65783.0,0.03]
[1727618832312,0.551887,65784.0,65783.0,0.03]
[1727618832519,0.59853353,65784.0,65779.0,0.00228022]
[1727618832713,0.075991,65780.0,65779.0,0.00228022]
[1727618832908,0.075991,65780.0,65779.0,0.07827322]
[1727618832909,0.165991,65780.0,65779.0,0.07827322]
[1727618835817,0.165991,65780.0,65779.0,0.17008039]
[1727618836029,0.165991,65780.0,65779.0,0.00228022]
[1727618836515,0.165991,65780.0,65779.0,0.06306009]
[1727618837610,0.165991,65780.0,65779.0,0.00228022]
[1727618837907,0.732071,65780.0,65779.0,0.00228022]
[1727618838107,0.885991,65780.0,65773.0,0.07597841]
[1727618838306,0.4808,65774.0,65771.0,0.07597841]
[1727618838513,0.196001,65772.0,65771.0,0.07597841]
[1727618838716,0.196001,65772.0,65768.0,0.07597841]
[1727618838717,0.076004,65769.0,65768.0,0.07597841]
[1727618838924,0.076004,65769.0,65768.0,0.16711544]
[1727618838925,0.266004,65769.0,65768.0,0.16711544]
[1727618839124,0.266004,65769.0,65760.0,0.0035]
[1727618839125,0.19,65769.0,65767.0,0.07597841]
[1727618839316,0.196005,65768.0,65767.0,0.07597841]
[1727618839518,0.266005,65768.0,65767.0,0.1670787]
[1727618840215,0.076006,65767.0,65766.0,0.07597841]
[1727618840413,0.116006,65767.0,65766.0,0.22885826]
[1727618840711,0.04,65767.0,65766.0,0.22888785]
[1727618840916,0.001,65768.0,65767.0,0.076006]
[1727618841116,0.002,65768.0,65767.0,0.63829019]
[1727618841319,0.002,65768.0,65767.0,0.67099019]
[1727618841619,0.002,65768.0,65767.0,0.579906]
[1727618842120,0.001,65768.0,65767.0,0.579906]
[1727618842733,0.002,65768.0,65767.0,0.579906]
[1727618843222,0.001,65768.0,65767.0,0.579906]
[1727618843819,0.002,65768.0,65767.0,0.579906]
[1727618844014,0.012,65768.0,65767.0,0.579906]
[1727618844822,0.012,65768.0,65767.0,0.469906]
[1727618845021,0.012,65768.0,65767.0,0.109106]
[1727618848429,0.122,65768.0,65767.0,0.109106]
[1727618848735,0.198005,65768.0,65767.0,0.17089939]
[1727618848918,0.1232,65768.0,65767.0,0.23249939]
[1727618849319,0.199205,65768.0,65767.0,0.23249939]
[1727618849526,0.199205,65768.0,65767.0,0.28551959]
[1727618850824,0.199205,65768.0,65767.0,0.19447269]
[1727618851031,0.199205,65768.0,65767.0,0.26175018]
[1727618851433,0.209205,65768.0,65767.0,0.18574418]
[1727618851626,0.209205,65768.0,65767.0,0.15304418]
[1727618855639,0.209205,65768.0,65767.0,0.15305135]
[1727618856432,0.208005,65768.0,65767.0,0.09105135]
[1727618856731,0.209205,65768.0,65767.0,0.062]
[1727618857131,0.209205,65768.0,65767.0,0.08576747]
[1727618858844,0.209205,65768.0,65767.0,0.062]
[1727618860147,0.208205,65768.0,65767.0,0.062]
[1727618860349,0.209205,65768.0,65767.0,0.062]
[1727618863539,0.209205,65768.0,65759.0,0.00228103]
[1727618863540,0.076015,65760.0,65759.0,0.00228103]
[1727618863748,0.076018,65757.0,65756.0,0.00030175]
[1727618863952,0.206018,65757.0,65756.0,0.00030175]
[1727618864756,0.206018,65757.0,65756.0,0.09191857]
[1727618865155,0.206018,65757.0,65756.0,0.18303707]
[1727618865350,0.207018,65757.0,65756.0,0.18303707]
[1727618865550,0.207018,65757.0,65756.0,0.25905607]
[1727618865759,0.207018,65757.0,65756.0,0.16793757]
[1727618866146,0.207018,65757.0,65756.0,0.09191857]
[1727618866351,0.208018,65757.0,65756.0,0.09191857]
[1727618866852,0.808018,65757.0,65756.0,0.09191857]
[1727618867053,1.264258,65757.0,65756.0,0.16785695]
[1727618867256,1.264258,65757.0,65756.0,0.00030175]
[1727618868952,1.144258,65757.0,65756.0,0.00030175]
[1727618869152,0.208018,65757.0,65756.0,0.00030175]
[1727618870051,0.088018,65757.0,65756.0,0.00030175]
[1727618870747,0.088018,65757.0,65756.0,0.07632075]
[1727618872662,0.012,65757.0,65756.0,0.07632075]
[1727618872966,0.012,65757.0,65756.0,0.19632075]
[1727618873163,0.088018,65757.0,65756.0,0.27225913]
[1727618874068,0.448818,65757.0,65756.0,0.27225913]
[1727618874453,0.3728,65757.0,65756.0,0.27225913]
[1727618874957,0.448818,65757.0,65756.0,0.15225913]
[1727618875758,0.448818,65757.0,65756.0,0.07632075]
[1727618875759,0.568818,65757.0,65756.0,0.07632075]
[1727618878767,0.448818,65757.0,65756.0,0.07632075]
[1727618889479,0.088018,65757.0,65756.0,0.15225913]
[1727618890280,0.088018,65757.0,65756.0,0.24402109]
[1727618891283,0.088018,65757.0,65756.0,0.16808271]
[1727618892181,0.088018,65757.0,65756.0,0.16811774]
[1727618893279,0.088018,65757.0,65756.0,0.09209874]
[1727618893582,0.208018,65757.0,65756.0,0.09209874]
[1727618894676,0.208018,65757.0,65756.0,0.00030175]
[1727618896671,1.264258,65757.0,65756.0,0.00030175]
[1727618897474,1.29209325,65757.0,65756.0,0.00030175]
[1727618898383,1.29109325,65757.0,65756.0,0.00030175]
[1727618898681,1.29209325,65757.0,65756.0,0.00030175]
[1727618901887,1.29209325,65757.0,65756.0,0.07632123]
[1727618903586,1.29209325,65757.0,65756.0,0.00030175]
[1727618903792,0.69209325,65757.0,65756.0,0.00030175]
[1727618905495,1.29209325,65757.0,65756.0,0.00030175]
[1727618907876,1.29109325,65757.0,65756.0,0.00030175]
[1727618908085,1.29509325,65757.0,65756.0,0.00030175]
[1727618908789,1.29909325,65757.0,65756.0,0.00030175]
[1727618909293,1.30409325,65757.0,65756.0,0.00030175]
[1727618909495,1.30009325,65757.0,65756.0,0.00030175]
[1727618909693,1.30909325,65757.0,65756.0,0.00030175]
[1727618912507,0.25285325,65757.0,65756.0,0.00030175]
[1727618914684,0.13285325,65757.0,65756.0,0.00030175]
[1727618914887,0.13285325,65757.0,65756.0,0.11030175]
[1727618915093,0.105018,65757.0,65756.0,0.18632075]
[1727618915490,0.105018,65757.0,65756.0,0.19632075]
[1727618916795,0.105018,65757.0,65756.0,0.28824128]
[1727618920299,0.225018,65757.0,65756.0,0.16824128]
[1727618923390,0.225018,65757.0,65756.0,0.09222228]
[1727618924892,0.225018,65757.0,65756.0,0.00030175]
[1727618927702,0.225018,65757.0,65756.0,0.07632075]
[1727618929801,0.149,65757.0,65756.0,0.07632075]
[1727618930793,0.225018,65757.0,65756.0,0.07632075]
[1727618931798,0.225018,65757.0,65756.0,0.24420604]
[1727618932108,0.225018,65757.0,65756.0,0.15233869]
[1727618935002,0.225018,65757.0,65756.0,0.24420586]
[1727618935509,0.225018,65757.0,65756.0,0.16818686]
[1727618935704,0.225018,65757.0,65756.0,0.07631969]
[1727618936100,0.225018,65757.0,65756.0,0.16818785]
[1727618936902,0.225018,65757.0,65756.0,0.07631969]
[1727618937313,0.225018,65757.0,65756.0,0.16819229]
[1727618938215,0.225018,65757.0,65756.0,0.16819828]
[1727618939803,0.225018,65757.0,65756.0,0.09218034]
[1727618941811,0.225018,65757.0,65756.0,0.16819934]
[1727618942705,0.225018,65757.0,65756.0,0.16824885]
[1727618943720,0.225018,65757.0,65756.0,0.25936924]
[1727618946810,0.225018,65757.0,65756.0,0.07632075]
[1727618948418,0.105018,65757.0,65756.0,0.07632075]
[1727618952518,0.225018,65757.0,65756.0,0.07632075]
[1727618954921,0.225018,65757.0,65756.0,0.1682854]
[1727618956910,0.225018,65757.0,65756.0,0.16827282]
[1727618957315,0.225018,65757.0,65756.0,0.25939321]
[1727618958219,0.225018,65757.0,65756.0,0.18337421]
[1727618961819,0.225018,65757.0,65756.0,0.09225382]
[1727618966017,0.585818,65757.0,65756.0,0.09225382]
[1727618966420,0.585818,65757.0,65756.0,0.09229181]
[1727618970025,0.585818,65757.0,65756.0,0.00030175]
[1727618973117,0.465818,65757.0,65756.0,0.00030175]
[1727618973318,0.585818,65757.0,65756.0,0.00030175]
[1727618975837,0.225018,65757.0,65756.0,0.00030175]
[1727618976037,0.585818,65757.0,65756.0,0.00030175]
[1727618977033,0.585818,65757.0,65756.0,0.16831273]
[1727618977234,0.585818,65757.0,65756.0,0.16830519]
[1727618978139,0.585818,65757.0,65756.0,0.09226653]
[1727618978332,0.585818,65757.0,65756.0,0.16830467]
[1727618979444,0.225018,65757.0,65756.0,0.16830467]
[1727618979643,0.585818,65757.0,65756.0,0.16830467]
[1727618980645,0.585818,65757.0,65756.0,0.16830625]
[1727618980847,0.225018,65757.0,65756.0,0.16830625]
[1727618981050,0.585818,65757.0,65756.0,0.16830625]
[1727618982041,0.585818,65757.0,65756.0,0.07633989]
[1727618982839,0.225018,65757.0,65756.0,0.07633989]
[1727618983040,0.585818,65757.0,65756.0,0.07633989]
[1727618985045,0.585818,65757.0,65756.0,0.00030175]
[1727618985750,0.585818,65757.0,65756.0,0.04592635]
[1727618985948,0.225018,65757.0,65756.0,0.04592635]
[1727618986155,0.585818,65757.0,65756.0,0.00030175]
[1727618993556,0.585818,65757.0,65756.0,0.07633989]
[1727618993949,0.225018,65757.0,65756.0,0.07633989]
[1727618994254,0.225018,65757.0,65756.0,0.1683962]
[1727618994255,0.585818,65757.0,65756.0,0.1683962]
[1727618994439,0.585818,65757.0,65756.0,0.09235806]
[1727618994647,0.585818,65757.0,65756.0,0.16842821]
[1727618995051,0.225018,65757.0,65756.0,0.16842821]
[1727618995351,0.585818,65757.0,65756.0,0.16842821]
[1727618996246,0.585818,65757.0,65756.0,0.09235806]
[1727618997251,0.585818,65757.0,65756.0,0.1684249]
[1727618997950,0.225018,65757.0,65756.0,0.1684249]
[1727618998354,0.585818,65757.0,65756.0,0.16836987]
[1727618998953,0.225018,65757.0,65756.0,0.16836987]
[1727618999155,0.585818,65757.0,65756.0,0.16836987]
[1727618999751,0.225018,65757.0,65756.0,0.16836987]
[1727619000062,0.585818,65757.0,65756.0,0.00030175]
[1727619000461,0.3898,65757.0,65756.0,0.00030175]
[1727619000653,0.019,65757.0,65756.0,0.10942075]
[1727619000956,0.0012,65760.0,65759.0,0.076016]
[1727619001261,0.0112,65760.0,65759.0,0.186416]
[1727619001462,0.0112,65760.0,65759.0,0.217516]
[1727619002356,0.0222,65760.0,65759.0,0.218516]
[1727619003059,0.0122,65760.0,65759.0,0.218516]
[1727619004059,0.0122,65760.0,65759.0,0.29541587]
[1727619004259,0.0232,65760.0,65759.0,0.29641587]
[1727619004761,0.0332,65760.0,65759.0,0.29641587]
[1727619005375,0.0332,65760.0,65759.0,0.27800555]
[1727619006348,0.0332,65760.0,65759.0,0.16800555]
[1727619007669,0.0332,65760.0,65759.0,0.22980885]
[1727619009757,0.0332,65760.0,65759.0,0.16800555]
[1727619010866,0.0322,65760.0,65759.0,0.16800555]
[1727619011361,0.0222,65760.0,65759.0,0.16700555]
[1727619011565,0.0282,65760.0,65759.0,0.16800555]
[1727619011765,0.0282,65760.0,65759.0,0.22980932]
[1727619012168,0.0282,65760.0,65759.0,0.22880932]
[1727619012354,0.0192,65760.0,65759.0,0.22980932]
[1727619012668,0.1362,65760.0,65759.0,0.22980932]
[1727619013054,0.1362,65760.0,65759.0,0.16800555]
[1727619015968,0.212215,65760.0,65759.0,0.16800555]
[1727619016171,0.222215,65760.0,65759.0,0.16800555]
[1727619016371,0.222215,65760.0,65759.0,0.08857066]
[1727619016564,0.583015,65760.0,65759.0,0.05727066]
[1727619018269,0.583015,65760.0,65759.0,0.0335]
[1727619020164,0.222215,65760.0,65759.0,0.0335]
[1727619022175,0.222215,65760.0,65759.0,0.20119404]
[1727619025466,0.222215,65760.0,65759.0,0.1251272]
[1727619028178,0.583015,65760.0,65759.0,0.1251272]
[1727619028477,0.583015,65760.0,65759.0,0.0940272]
[1727619029277,0.583015,65760.0,65759.0,0.17004029]
[1727619029573,0.222215,65760.0,65759.0,0.0940272]
[1727619029777,0.583015,65760.0,65759.0,0.0940272]
[1727619030078,0.583015,65760.0,65759.0,0.1700502]
[1727619030469,0.583015,65760.0,65759.0,0.0940272]
[1727619031773,0.583015,65760.0,65759.0,0.17016829]
[1727619033067,0.222215,65760.0,65759.0,0.17016829]
[1727619036378,0.222215,65760.0,65759.0,0.0784188]
[1727619036683,0.222215,65760.0,65759.0,0.17019272]
[1727619037183,0.222215,65760.0,65759.0,0.0024]
[1727619043186,0.222215,65760.0,65759.0,0.078416]
[1727619043682,0.222215,65760.0,65759.0,0.12402396]
[1727619045187,0.222215,65760.0,65759.0,0.17020984]
[1727619045491,0.0262,65760.0,65759.0,0.28020984]
[1727619045690,0.0262,65760.0,65759.0,0.51313023]
[1727619045984,0.0262,65760.0,65759.0,0.42200984]
[1727619046183,0.0262,65760.0,65759.0,0.53136256]
[1727619046580,0.0262,65760.0,65759.0,0.42136256]
[1727619046885,0.0262,65760.0,65759.0,0.52136256]
[1727619047085,0.0262,65760.0,65759.0,1.57756256]
[1727619047791,0.0262,65760.0,65759.0,0.97756256]
[1727619048478,0.0162,65760.0,65759.0,1.57756256]
[1727619049090,0.0035,65767.0,65766.0,0.076008]
[1727619049293,0.02,65767.0,65766.0,0.52860184]
[1727619049591,0.02,65767.0,65766.0,0.55990184]
[1727619050484,0.02,65767.0,65766.0,0.55961484]
[1727619051380,0.047,65767.0,65766.0,0.63757335]
[1727619052179,0.047,65767.0,65766.0,0.470108]
[1727619054977,0.027,65767.0,65766.0,0.5618219]
[1727619055178,0.027,65767.0,65766.0,0.56172003]
[1727619056077,0.027,65767.0,65766.0,0.58968653]
[1727619056279,0.027,65767.0,65766.0,0.66559738]
[1727619056489,0.037,65767.0,65766.0,0.66559738]
[1727619057286,0.037,65767.0,65766.0,0.4980745]
[1727619058387,0.037,65767.0,65766.0,0.5980745]
[1727619059496,0.023,65767.0,65766.0,0.5970745]
[1727619059692,0.033,65767.0,65766.0,0.5980745]
[1727619060480,0.032,65767.0,65766.0,0.5980745]
[1727619061095,0.032,65767.0,65766.0,0.2372745]
[1727619061293,0.032,65767.0,65766.0,0.5980745]
[1727619063685,0.022,65767.0,65766.0,0.7080745]
[1727619064491,0.007,65775.0,65774.0,0.075998]
[1727619064692,0.075996,65777.0,65776.0,0.075996]
[1727619064992,0.095996,65777.0,65776.0,0.176396]
[1727619065393,0.02,65777.0,65776.0,0.176396]
[1727619065783,0.02,65777.0,65776.0,0.286396]
[1727619065985,0.3608,65779.0,65776.0,0.2104]
[1727619066191,0.3908,65779.0,65778.0,0.0004]
[1727619066388,0.466793,65779.0,65778.0,0.076394]
[1727619067987,0.467793,65779.0,65778.0,0.077394]
[1727619069087,0.468793,65779.0,65778.0,0.078394]
[1727619071488,0.107993,65779.0,65778.0,0.078394]
[1727619073196,0.107993,65779.0,65778.0,0.0024]
[1727619074096,0.140393,65779.0,65778.0,0.0024]
[1727619075199,0.18736305,65779.0,65778.0,0.0024]
[1727619077098,0.18740723,65779.0,65778.0,0.0024]
[1727619081693,0.18735803,65779.0,65778.0,0.0024]
[1727619082402,0.140393,65779.0,65778.0,0.0024]
[1727619084313,0.140393,65779.0,65778.0,0.078394]
[1727619084604,0.107993,65779.0,65778.0,0.078394]
[1727619085404,0.107993,65779.0,65778.0,0.12392672]
[1727619086601,0.032,65779.0,65778.0,0.12395356]
[1727619086807,0.032,65779.0,65778.0,0.078394]
[1727619087904,0.031,65779.0,65778.0,0.077394]
[1727619088104,0.031,65779.0,65778.0,0.078394]
[1727619088498,0.03,65779.0,65778.0,0.077394]
[1727619088693,0.031,65779.0,65778.0,0.078394]
[1727619090294,0.106993,65779.0,65778.0,0.078394]
[1727619090699,0.15415256,65779.0,65778.0,0.078394]
[1727619097506,0.106993,65779.0,65778.0,0.078394]
[1727619100131,0.106993,65779.0,65778.0,0.188394]
[1727619100318,0.031,65779.0,65778.0,0.188394]
[1727619101711,0.031,65779.0,65778.0,0.35538878]
[1727619101915,0.031,65779.0,65778.0,0.188394]
[1727619103511,0.031,65779.0,65778.0,0.21215767]
[1727619103816,0.031,65779.0,65778.0,0.188394]
[1727619104013,0.031,65779.0,65778.0,0.25017728]
[1727619104210,0.031,65779.0,65778.0,0.35017728]
[1727619107324,0.031,65779.0,65778.0,0.3121568]
[1727619108418,0.001,65779.0,65778.0,0.3121568]
[1727619109724,0.001,65779.0,65778.0,0.3117568]
[1727619110920,0.011,65779.0,65778.0,0.3117568]
[1727619111321,0.086993,65779.0,65778.0,0.3117568]
[1727619112721,0.011,65779.0,65778.0,0.3117568]
[1727619113122,0.086993,65779.0,65778.0,0.3117568]
[1727619115533,0.086993,65779.0,65778.0,0.34977729]
[1727619118039,0.086993,65779.0,65778.0,0.3117568]
[1727619118227,0.086993,65779.0,65778.0,0.287994]
[1727619121040,0.086993,65779.0,65778.0,0.177994]
[1727619122129,0.086993,65779.0,65778.0,0.20175709]
[1727619123635,0.086993,65779.0,65778.0,0.177994]
[1727619124545,0.086993,65779.0,65778.0,0.20175711]
[1727619131235,0.075988,65784.0,65778.0,0.12576311]
[1727619131549,0.095988,65784.0,65783.0,0.12159588]
[1727619131843,0.02,65784.0,65783.0,0.075988]
[1727619132935,0.02,65784.0,65783.0,0.137767]
[1727619133546,0.096987,65784.0,65783.0,0.137767]
[1727619134446,0.096987,65784.0,65783.0,0.139767]
[1727619135050,0.096987,65784.0,65783.0,0.30669743]
[1727619136149,0.096987,65784.0,65783.0,0.15400705]
[1727619137351,0.096987,65784.0,65783.0,0.1688608]
[1727619137866,0.096987,65784.0,65783.0,0.07801905]
[1727619138467,0.096987,65784.0,65783.0,0.16885718]
[1727619138659,0.096987,65784.0,65783.0,0.16884826]
[1727619139361,0.096987,65784.0,65783.0,0.077988]
[1727619139563,0.096987,65784.0,65783.0,0.07801905]
[1727619139758,0.096987,65784.0,65783.0,0.16881056]
[1727619140170,0.096987,65784.0,65783.0,0.07801905]
[1727619140558,0.096987,65784.0,65783.0,0.23058665]
[1727619141565,0.096987,65784.0,65783.0,0.16880696]
[1727619142766,0.096987,65784.0,65783.0,0.16877591]
[1727619142962,0.096987,65784.0,65783.0,0.25999877]
[1727619143171,0.096987,65784.0,65783.0,0.18401077]
[1727619143365,0.096987,65784.0,65783.0,0.15456799]
[1727619143565,0.096987,65784.0,65783.0,0.23055599]
[1727619146568,0.096987,65784.0,65783.0,0.15456799]
[1727619148165,0.096987,65784.0,65783.0,0.23058074]
[1727619149464,0.096987,65784.0,65783.0,0.3217143]